bitfinex-derivatives/quotes_BTCF0:USTF0_20250406
["timestamp","ask_amount","ask_price","bid_price","bid_amount"]
[1743915232454,0.0947,83479.0,83478.0,0.0866462]
[1743915232652,0.0947,83479.0,83478.0,0.0906462]
[1743915233053,0.0947,83479.0,83478.0,0.0896462]
[1743915233253,0.0947,83479.0,83478.0,0.1167462]
[1743915233558,0.0947,83479.0,83478.0,0.1187462]
[1743915235262,0.0955,83479.0,83478.0,0.1187462]
[1743915246559,0.0008,83479.0,83478.0,0.4795462]
[1743915246771,0.1438035,83480.0,83479.0,0.0838852]
[1743915246956,0.05048,83481.0,83479.0,0.0838852]
[1743915246957,0.1942035,83481.0,83480.0,0.0838842]
[1743915247157,0.1942835,83481.0,83480.0,0.0838842]
[1743915247364,0.1942835,83481.0,83480.0,0.1456842]
[1743915248757,0.1438835,83481.0,83480.0,0.1456842]
[1743915248961,0.1438035,83481.0,83480.0,0.1456842]
[1743915249464,0.1438035,83481.0,83480.0,0.1476842]
[1743915249967,0.1438035,83481.0,83480.0,0.1506842]
[1743915250265,0.00076,83481.0,83480.0,0.1514442]
[1743915251960,0.00076,83481.0,83480.0,0.1494442]
[1743915252160,0.00076,83481.0,83480.0,0.1534442]
[1743915256562,8e-05,83482.0,83481.0,0.0838832]
[1743915257068,8e-05,83482.0,83481.0,0.1461832]
[1743915258065,8e-05,83482.0,83481.0,0.1491832]
[1743915258466,8e-05,83482.0,83481.0,0.1511832]
[1743915262969,0.00084,83482.0,83481.0,0.1519432]
[1743915264868,0.00084,83482.0,83481.0,0.1489432]
[1743915265172,0.00084,83482.0,83481.0,0.1519432]
[1743915267177,0.03414,83482.0,83481.0,0.1519432]
[1743915272476,0.03414,83482.0,83481.0,0.1489432]
[1743915272676,0.03414,83482.0,83481.0,0.1519432]
[1743915275186,0.03414,83482.0,83481.0,0.36701776]
[1743915277465,0.03414,83482.0,83481.0,0.30471776]
[1743915277879,0.1180222,83482.0,83481.0,0.33731776]
[1743915278077,0.03414,83482.0,83481.0,0.33731776]
[1743915278271,0.03414,83482.0,83481.0,0.1222432]
[1743915278671,0.06494,83482.0,83481.0,0.1222432]
[1743915278972,0.06494,83482.0,83481.0,0.1192432]
[1743915279174,0.06494,83482.0,83481.0,0.1222432]
[1743915282582,0.06494,83482.0,83481.0,0.0896432]
[1743915282883,0.1488222,83482.0,83481.0,0.0896432]
[1743915286182,0.1488222,83482.0,83481.0,0.1218432]
[1743915286585,0.2926257,83482.0,83481.0,0.1218432]
[1743915288884,0.2926257,83482.0,83481.0,0.0896432]
[1743915291585,0.2926257,83482.0,83481.0,0.1227432]
[1743915294788,0.2926257,83482.0,83481.0,0.0896432]
[1743915294985,0.2926257,83482.0,83481.0,0.1214432]
[1743915302391,0.1488222,83482.0,83481.0,0.1214432]
[1743915306484,0.1488222,83482.0,83481.0,0.1516432]
[1743915314591,0.0847222,83482.0,83481.0,0.1516432]
[1743915314792,0.1458222,83482.0,83481.0,0.1516432]
[1743915337621,0.1458222,83482.0,83481.0,0.1214432]
[1743915340927,0.1961822,83482.0,83481.0,0.1214432]
[1743915365136,0.1961022,83482.0,83481.0,0.1214432]
[1743915367136,0.1961022,83482.0,83481.0,0.1519432]
[1743915369340,0.1961022,83482.0,83481.0,0.1214432]
[1743915370733,0.1961022,83482.0,83481.0,0.03756]
[1743915372242,0.1961022,83482.0,83481.0,0.1214432]
[1743915372442,0.1961022,83482.0,83481.0,0.00576]
[1743915372941,0.21410221,83482.0,83481.0,0.00576]
[1743915373335,0.1961022,83482.0,83481.0,0.00576]
[1743915373535,0.21410221,83482.0,83481.0,0.00576]
[1743915374438,0.21410221,83482.0,83481.0,0.005]
[1743915379151,0.27237156,83482.0,83481.0,0.005]
[1743915382855,0.39355694,83482.0,83481.0,0.005]
[1743915385258,0.26409693,83482.0,83481.0,0.005]
[1743915385558,0.31445693,83482.0,83481.0,0.0888832]
[1743915385757,0.31445693,83482.0,83481.0,0.0896432]
[1743915386446,0.31445693,83482.0,83481.0,0.1531432]
[1743915388858,0.31445693,83482.0,83481.0,0.06926]
[1743915389358,0.34675693,83482.0,83481.0,0.06926]
[1743915389548,0.70755693,83482.0,83481.0,0.06926]
[1743915390248,0.5281022,83482.0,83481.0,0.06926]
[1743915391157,0.5281022,83482.0,83481.0,0.0685]
[1743915393360,0.1673022,83482.0,83481.0,0.0685]
[1743915393565,0.5281022,83482.0,83481.0,0.0685]
[1743915394057,0.54610221,83482.0,83481.0,0.0685]
[1743915394557,0.5281022,83482.0,83481.0,0.0685]
[1743915395256,0.54610221,83482.0,83481.0,0.0685]
[1743915395462,0.4958022,83482.0,83481.0,0.06926]
[1743915396361,0.51380221,83482.0,83481.0,0.06926]
[1743915396561,0.4958022,83482.0,83481.0,0.06926]
[1743915397262,0.51380221,83482.0,83481.0,0.06926]
[1743915397464,0.4958022,83482.0,83481.0,0.06926]
[1743915397663,0.51380221,83482.0,83481.0,0.06926]
[1743915397865,0.4958022,83482.0,83481.0,0.06926]
[1743915398067,0.51380221,83482.0,83481.0,0.06926]
[1743915398551,0.4958022,83482.0,83481.0,0.06926]
[1743915398959,0.51380221,83482.0,83481.0,0.06926]
[1743915399264,0.4958022,83482.0,83481.0,0.06926]
[1743915400264,0.51380221,83482.0,83481.0,0.06926]
[1743915400467,0.67525693,83482.0,83481.0,0.06926]
[1743915404071,0.55406823,83482.0,83481.0,0.06926]
[1743915405869,0.19326823,83482.0,83481.0,0.06926]
[1743915406165,0.55406823,83482.0,83481.0,0.06926]
[1743915406665,0.55406823,83482.0,83481.0,0.0685]
[1743915407662,0.58726823,83482.0,83481.0,0.0685]
[1743915407863,0.22646823,83482.0,83481.0,0.0685]
[1743915408071,0.58726823,83482.0,83481.0,0.0685]
[1743915410071,0.22646823,83482.0,83481.0,0.0685]
[1743915410273,0.58726823,83482.0,83481.0,0.06926]
[1743915410471,0.58726823,83482.0,83481.0,0.0685]
[1743915411975,0.61806823,83482.0,83481.0,0.0685]
[1743915413374,0.27526824,83482.0,83481.0,0.0685]
[1743915413573,0.61806823,83482.0,83481.0,0.06926]
[1743915413876,0.61806823,83482.0,83481.0,0.0685]
[1743915414271,0.63606824,83482.0,83481.0,0.0685]
[1743915414472,0.61806823,83482.0,83481.0,0.0685]
[1743915414971,0.63606824,83482.0,83481.0,0.0685]
[1743915415578,0.61806823,83482.0,83481.0,0.0685]
[1743915416365,0.63606824,83482.0,83481.0,0.0685]
[1743915416575,0.61806823,83482.0,83481.0,0.0685]
[1743915417671,0.63606824,83482.0,83481.0,0.0685]
[1743915417875,0.61806823,83482.0,83481.0,0.0685]
[1743915419574,0.63606824,83482.0,83481.0,0.0685]
[1743915419778,0.56770823,83482.0,83481.0,0.0685]
[1743915420075,0.63606824,83482.0,83481.0,0.0685]
[1743915420278,0.61806823,83482.0,83481.0,0.0685]
[1743915420481,0.61806823,83482.0,83481.0,0.0675]
[1743915420681,0.61806823,83482.0,83481.0,0.0665]
[1743915425375,0.61806823,83482.0,83481.0,0.06726]
[1743915425775,0.61806823,83482.0,83481.0,0.1511432]
[1743915426983,0.61806823,83482.0,83481.0,0.06726]
[1743915427878,0.61806823,83482.0,83481.0,0.1503832]
[1743915428075,0.61806823,83482.0,83481.0,0.0665]
[1743915428491,0.61806823,83482.0,83481.0,0.1503832]
[1743915428681,0.61806823,83482.0,83481.0,0.06726]
[1743915429789,0.50370823,83482.0,83481.0,0.1511432]
[1743915429987,0.14290823,83482.0,83481.0,0.1511432]
[1743915434093,0.0846422,83482.0,83481.0,0.1511432]
[1743915437797,0.00076,83482.0,83481.0,0.1511432]
[1743915438296,0.14376048,83483.0,83482.0,0.0838822]
[1743915438493,0.14368048,83483.0,83482.0,0.0838822]
[1743915438696,0.14368048,83483.0,83482.0,0.1773822]
[1743915439196,0.14376048,83483.0,83482.0,0.1773822]
[1743915439601,0.22764168,83483.0,83482.0,0.1773822]
[1743915440094,0.22844168,83483.0,83482.0,0.1781822]
[1743915440296,0.14456048,83483.0,83482.0,0.1781822]
[1743915440902,0.14456048,83483.0,83482.0,0.1801822]
[1743915442304,0.00088,83483.0,83482.0,0.1801822]
[1743915442496,0.00084,83483.0,83482.0,0.1821822]
[1743915443400,0.0838788,83486.0,83485.0,0.0838792]
[1743915443602,0.0846788,83486.0,83485.0,0.0846792]
[1743915446401,0.0846788,83486.0,83485.0,0.0866792]
[1743915447207,0.0846788,83486.0,83485.0,0.0856792]
[1743915447506,0.1147788,83486.0,83485.0,0.0856792]
[1743915451803,0.1473788,83486.0,83485.0,0.0856792]
[1743915452008,0.1172788,83486.0,83485.0,0.0856792]
[1743915453311,0.1474788,83486.0,83485.0,0.0856792]
[1743915455212,0.29115928,83486.0,83485.0,0.0856792]
[1743915458714,0.1474788,83486.0,83485.0,0.0856792]
[1743915460417,0.0636,83486.0,83485.0,0.0856792]
[1743915460713,0.0008,83486.0,83485.0,0.1175792]
[1743915461317,0.1168782,83486.0,83485.0,0.1175792]
[1743915461616,0.1489782,83486.0,83485.0,0.1175792]
[1743915461812,0.0651,83486.0,83485.0,0.1172792]
[1743915463320,0.1489782,83486.0,83485.0,0.1172792]
[1743915465219,0.0651,83486.0,83485.0,0.1172792]
[1743915465622,0.0651,83486.0,83485.0,0.1487792]
[1743915467321,0.0008,83486.0,83485.0,0.1487792]
[1743915467513,0.0008,83486.0,83485.0,0.1814792]
[1743915468917,0.0846782,83486.0,83485.0,0.1814792]
[1743915469220,0.0846782,83486.0,83485.0,0.1834792]
[1743915471721,0.0846782,83486.0,83485.0,0.1507792]
[1743915471930,0.0846782,83486.0,83485.0,0.1192792]
[1743915472123,0.1160782,83486.0,83485.0,0.1192792]
[1743915472421,0.1465782,83486.0,83485.0,0.1192792]
[1743915473022,0.1465782,83486.0,83485.0,0.1172792]
[1743915473224,0.1465782,83486.0,83485.0,0.1192792]
[1743915474627,0.0627,83486.0,83485.0,0.1192792]
[1743915476224,0.1465782,83486.0,83485.0,0.1192792]
[1743915477316,0.29035491,83486.0,83485.0,0.1192792]
[1743915479931,0.14457671,83486.0,83485.0,0.1192792]
[1743915480227,0.14457671,83486.0,83485.0,0.1492792]
[1743915480828,0.22845491,83486.0,83485.0,0.1492792]
[1743915483628,0.14457671,83486.0,83485.0,0.1492792]
[1743915484530,0.22845491,83486.0,83485.0,0.1492792]
[1743915485233,0.0846782,83486.0,83485.0,0.1192792]
[1743915485535,0.1461782,83486.0,83485.0,0.1192792]
[1743915486415,0.0623,83486.0,83485.0,0.1192792]
[1743915486619,0.0008,83486.0,83485.0,0.1504792]
[1743915487020,0.0008,83486.0,83485.0,0.1494792]
[1743915487326,0.0008,83486.0,83485.0,0.1504792]
[1743915490128,0.0008,83486.0,83485.0,0.3904792]
[1743915490319,0.14385671,83487.0,83486.0,0.0838782]
[1743915490728,0.14385671,83487.0,83486.0,0.1481782]
[1743915490922,0.14377671,83487.0,83486.0,0.1481782]
[1743915491931,0.14377671,83487.0,83486.0,0.3791782]
[1743915492132,0.14377671,83487.0,83486.0,0.3811782]
[1743915492332,0.14377671,83487.0,83486.0,0.1511782]
[1743915493930,0.00048,83488.0,83487.0,0.0838772]
[1743915494130,0.00048,83488.0,83487.0,0.1466772]
[1743915494337,0.0004,83488.0,83487.0,0.1797772]
[1743915495034,0.0004,83488.0,83487.0,0.1816172]
[1743915496434,0.0004,83488.0,83487.0,0.5434172]
[1743915496932,8e-05,83489.0,83488.0,0.0838762]
[1743915497135,0.10776067,83492.0,83491.0,0.0838732]
[1743915497432,0.10776067,83492.0,83491.0,0.3446332]
[1743915498036,8e-05,83493.0,83492.0,0.0838722]
[1743915498235,8e-05,83493.0,83492.0,0.3548722]
[1743915498427,8e-05,83493.0,83492.0,0.3877722]
[1743915498928,8e-05,83493.0,83492.0,1.1093722]
[1743915501539,8e-05,83493.0,83492.0,1.3082722]
[1743915501847,0.10776067,83495.0,83492.0,1.3082722]
[1743915501848,0.10776067,83495.0,83494.0,0.0838702]
[1743915502034,0.06928137,83495.0,83494.0,0.3047102]
[1743915502234,7e-08,83495.0,83494.0,0.3047102]
[1743915503039,8e-05,83498.0,83497.0,0.0838672]
[1743915503241,8e-05,83498.0,83497.0,0.3346272]
[1743915503941,8e-05,83498.0,83497.0,0.0846272]
[1743915504639,8e-05,83498.0,83497.0,0.1846272]
[1743915504837,0.0658,83507.0,83499.0,0.0838651]
[1743915505041,0.10064,83500.0,83499.0,0.4454651]
[1743915505243,0.1,83500.0,83499.0,0.4454651]
[1743915505443,1e-07,83500.0,83499.0,0.9590651]
[1743915509649,1e-07,83500.0,83499.0,1.3198651]
[1743915510045,1e-07,83500.0,83499.0,1.32906597]
[1743915512335,1e-07,83500.0,83499.0,1.07906597]
[1743915512543,1e-07,83500.0,83499.0,1.29906597]
[1743915514743,1e-07,83500.0,83499.0,1.512643]
[1743915520253,1e-07,83500.0,83499.0,0.791043]
[1743915520455,1e-07,83500.0,83499.0,1.512643]
[1743915520857,1e-07,83500.0,83499.0,0.791043]
[1743915521155,1e-07,83500.0,83499.0,1.512643]
[1743915521762,1e-07,83500.0,83499.0,1.292643]
[1743915522257,1e-07,83500.0,83499.0,1.512643]
[1743915522555,1e-07,83500.0,83499.0,1.29906597]
[1743915523755,0.0661001,83500.0,83499.0,1.29906597]
[1743915526252,0.0661001,83500.0,83499.0,1.58558315]
[1743915530858,0.0661001,83500.0,83499.0,1.29906597]
[1743915536872,0.0661001,83500.0,83499.0,0.57746597]
[1743915537059,0.0661001,83500.0,83499.0,1.29906597]
[1743915538971,0.0661001,83500.0,83499.0,1.07906597]
[1743915541468,0.0661001,83500.0,83499.0,1.33906597]
[1743915541675,0.0661001,83500.0,83499.0,1.07906597]
[1743915543171,1e-07,83500.0,83499.0,1.18906597]
[1743915547276,1e-07,83500.0,83499.0,1.86361596]
[1743915554280,1e-07,83500.0,83499.0,1.50587218]
[1743915557268,0.0309001,83500.0,83499.0,1.50587218]
[1743915557474,1e-07,83500.0,83499.0,1.50587218]
[1743915558986,0.0317001,83500.0,83499.0,1.50587218]
[1743915568286,0.0317001,83500.0,83499.0,1.47427218]
[1743915571989,0.0317001,83500.0,83499.0,1.44117218]
[1743915572387,0.0317001,83500.0,83499.0,1.47227218]
[1743915578515,0.0317001,83500.0,83499.0,1.48327218]
[1743915579613,0.0317001,83500.0,83499.0,1.47827218]
[1743915579815,0.0317001,83500.0,83499.0,1.47727218]
[1743915580010,0.0317001,83500.0,83499.0,1.48327218]
[1743915581518,0.0317001,83500.0,83499.0,1.47827218]
[1743915581725,0.0317001,83500.0,83499.0,1.48327218]
[1743915582219,0.0317001,83500.0,83499.0,1.48227218]
[1743915584523,0.0317001,83500.0,83499.0,1.51287218]
[1743915586516,1e-07,83501.0,83500.0,0.2827641]
[1743915586822,0.063,83508.0,83507.0,0.0838571]
[1743915587124,0.063,83508.0,83507.0,0.7254171]
[1743915587526,0.063,83508.0,83507.0,0.7879171]
[1743915588326,0.095,83508.0,83507.0,0.7879171]
[1743915589029,0.095,83508.0,83507.0,0.7909171]
[1743915589526,0.095,83508.0,83507.0,0.7939171]
[1743915593223,0.095,83508.0,83507.0,0.9928171]
[1743915593426,0.095,83508.0,83507.0,1.3536171]
[1743915596235,0.095,83508.0,83507.0,0.6320171]
[1743915596426,0.095,83508.0,83507.0,1.3536171]
[1743915599936,0.0311,83508.0,83507.0,1.3536171]
[1743915600544,0.0311,83508.0,83507.0,1.3236171]
[1743915600834,8e-05,83509.0,83507.0,1.3236171]
[1743915600835,8e-05,83509.0,83508.0,0.0838561]
[1743915601037,8e-05,83509.0,83508.0,0.3871561]
[1743915602037,0.03028,83509.0,83508.0,0.3901561]
[1743915602225,0.03028,83509.0,83508.0,0.3921561]
[1743915603444,0.03028,83509.0,83508.0,0.5910561]
[1743915608842,0.03028,83509.0,83508.0,1.3126561]
[1743915610651,0.03028,83509.0,83508.0,0.5910561]
[1743915610844,0.03028,83509.0,83508.0,1.3126561]
[1743915614246,0.03028,83509.0,83508.0,1.3136561]
[1743915614843,0.03028,83509.0,83508.0,1.3116561]
[1743915615045,0.03028,83509.0,83508.0,1.3156561]
[1743915615242,0.03028,83509.0,83508.0,0.9548561]
[1743915615445,0.03028,83509.0,83508.0,1.3156561]
[1743915615643,0.03028,83509.0,83508.0,1.3166561]
[1743915616237,0.03028,83509.0,83508.0,0.5950561]
[1743915616439,0.03028,83509.0,83508.0,1.3166561]
[1743915616640,0.03028,83509.0,83508.0,1.3186561]
[1743915617345,0.03028,83509.0,83508.0,1.3126561]
[1743915617544,0.03028,83509.0,83508.0,1.3186561]
[1743915619042,0.03028,83509.0,83508.0,1.3136561]
[1743915619342,0.03028,83509.0,83508.0,1.3186561]
[1743915619739,0.03028,83509.0,83508.0,1.3126561]
[1743915619946,0.03028,83509.0,83508.0,1.3186561]
[1743915621749,0.03028,83509.0,83508.0,0.5970561]
[1743915621943,0.03028,83509.0,83508.0,1.3186561]
[1743915622554,0.03028,83509.0,83508.0,0.5970561]
[1743915622745,0.03028,83509.0,83508.0,1.3186561]
[1743915623938,0.03028,83509.0,83508.0,1.3176561]
[1743915624846,0.03028,83509.0,83508.0,1.3186561]
[1743915626445,0.03028,83509.0,83508.0,1.3126561]
[1743915626645,0.03028,83509.0,83508.0,1.3186561]
[1743915627757,0.03028,83509.0,83508.0,1.67631495]
[1743915629150,0.03028,83509.0,83508.0,0.95471495]
[1743915629351,0.03028,83509.0,83508.0,1.67631495]
[1743915629854,0.03028,83509.0,83508.0,1.64401495]
[1743915631556,0.03028,83509.0,83508.0,1.2863561]
[1743915632956,0.03028,83509.0,83508.0,0.5647561]
[1743915633162,0.03028,83509.0,83508.0,1.2863561]
[1743915633950,0.03028,83509.0,83508.0,0.5647561]
[1743915634149,0.03028,83509.0,83508.0,1.2863561]
[1743915634349,0.03028,83509.0,83508.0,0.5647561]
[1743915634555,0.03028,83509.0,83508.0,1.2863561]
[1743915634760,8e-05,83509.0,83508.0,1.3494561]
[1743915637563,8e-05,83509.0,83508.0,1.3193561]
[1743915639360,0.03218,83509.0,83508.0,1.3193561]
[1743915641471,0.03218,83509.0,83508.0,1.2863561]
[1743915641658,0.03218,83509.0,83508.0,1.0463561]
[1743915642965,0.03218,83509.0,83508.0,1.72363549]
[1743915643569,0.03218,83509.0,83508.0,1.71763549]
[1743915643764,0.03218,83509.0,83508.0,1.72263549]
[1743915646064,0.03218,83509.0,83508.0,1.75423549]
[1743915646662,0.03218,83509.0,83508.0,1.98523549]
[1743915648067,0.03218,83509.0,83508.0,1.3079561]
[1743915653663,8e-05,83509.0,83508.0,1.3079561]
[1743915657165,8e-05,83509.0,83508.0,1.3019561]
[1743915657373,8e-05,83509.0,83508.0,1.3079561]
[1743915660579,8e-05,83509.0,83508.0,1.3089561]
[1743915661873,0.0332,83512.0,83511.0,0.0838531]
[1743915662073,0.0332,83512.0,83511.0,0.3446931]
[1743915662282,0.0332,83512.0,83511.0,0.4098931]
[1743915663381,0.0332,83512.0,83511.0,0.4158931]
[1743915663783,0.0332,83512.0,83511.0,0.4208931]
[1743915665383,0.0637,83512.0,83511.0,0.4208931]
[1743915665983,0.0637,83512.0,83511.0,0.7816931]
[1743915666286,0.0637,83512.0,83511.0,1.1414931]
[1743915667093,0.0637,83512.0,83511.0,1.1364931]
[1743915667281,0.0637,83512.0,83511.0,1.1404931]
[1743915667887,0.0637,83512.0,83511.0,1.1364931]
[1743915668089,0.0637,83512.0,83511.0,1.1414931]
[1743915669388,0.0637,83512.0,83511.0,1.1364931]
[1743915669587,0.0637,83512.0,83511.0,1.1424931]
[1743915670092,0.0637,83512.0,83511.0,1.1374931]
[1743915670289,0.0637,83512.0,83511.0,1.1424931]
[1743915671785,0.03198,83513.0,83512.0,0.0838521]
[1743915671991,0.0319,83513.0,83512.0,0.3975121]
[1743915672176,0.03198,83513.0,83512.0,0.4294121]
[1743915673083,0.03198,83513.0,83512.0,0.4344121]
[1743915673282,0.03198,83513.0,83512.0,0.4394121]
[1743915673489,0.06268,83513.0,83512.0,0.4394121]
[1743915673791,0.06268,83513.0,83512.0,0.6333121]
[1743915673984,0.06268,83513.0,83512.0,0.6383121]
[1743915676483,1e-07,83513.0,83512.0,0.6383121]
[1743915676698,1e-08,83524.0,83520.0,0.0419215]
[1743915676888,1e-08,83524.0,83523.0,0.643541]
[1743915677189,1e-08,83524.0,83523.0,0.873541]
[1743915677395,1e-08,83524.0,83523.0,0.874301]
[1743915677992,1e-08,83524.0,83523.0,0.876301]
[1743915678394,1e-08,83524.0,83523.0,1.237101]
[1743915678794,1e-08,83524.0,83523.0,1.239101]
[1743915679400,8e-05,83529.0,83528.0,0.083836]
[1743915679600,8e-05,83529.0,83528.0,0.294596]
[1743915680294,8e-05,83529.0,83528.0,0.655396]
[1743915680596,8e-05,83529.0,83528.0,0.656396]
[1743915680796,8e-05,83529.0,83528.0,0.688796]
[1743915680998,8e-05,83529.0,83528.0,0.719296]
[1743915681297,8e-05,83529.0,83528.0,0.720296]
[1743915691994,8e-05,83529.0,83528.0,0.919196]
[1743915694198,8e-05,83529.0,83528.0,0.558396]
[1743915694404,8e-05,83529.0,83528.0,1.279996]
[1743915698703,8e-05,83529.0,83528.0,0.558396]
[1743915698907,8e-05,83529.0,83528.0,1.279996]
[1743915702511,8e-05,83529.0,83528.0,1.249496]
[1743915703711,8e-05,83529.0,83528.0,1.53499809]
[1743915706308,8e-05,83529.0,83528.0,1.249496]
[1743915707514,8e-05,83529.0,83528.0,1.280896]
[1743915710417,0.03158,83529.0,83528.0,1.280896]
[1743915710615,0.06458,83529.0,83528.0,1.280896]
[1743915711619,0.06458,83529.0,83528.0,1.29735977]
[1743915713327,0.06458,83529.0,83528.0,1.99043351]
[1743915714228,0.05193606,83529.0,83528.0,1.99043351]
[1743915714913,0.033,83529.0,83528.0,1.99043351]
[1743915715928,8e-05,83537.0,83536.0,0.083828]
[1743915716223,8e-05,83537.0,83536.0,0.10105177]
[1743915716527,8e-05,83537.0,83536.0,0.46185177]
[1743915718514,8e-05,83537.0,83536.0,0.10105177]
[1743915718720,8e-05,83537.0,83536.0,0.46185177]
[1743915720315,8e-05,83537.0,83536.0,0.10105177]
[1743915720530,8e-05,83537.0,83536.0,0.46185177]
[1743915721828,8e-05,83537.0,83536.0,0.4620459]
[1743915722222,0.06188,83537.0,83536.0,0.4620459]
[1743915722832,0.06188,83537.0,83536.0,0.4942459]
[1743915725923,0.06188,83537.0,83536.0,0.49425663]
[1743915727530,0.06188,83537.0,83536.0,0.52725663]
[1743915732924,0.06188,83537.0,83536.0,0.52737455]
[1743915738242,0.06188,83537.0,83536.0,0.510588]
[1743915738434,0.06188,83537.0,83536.0,0.52729428]
[1743915740234,0.06188,83537.0,83536.0,0.52729705]
[1743915740845,0.06188,83537.0,83536.0,0.52728622]
[1743915744950,0.06188,83537.0,83536.0,0.16648622]
[1743915745142,0.06188,83537.0,83536.0,0.52728622]
[1743915746752,0.06188,83537.0,83536.0,0.16648622]
[1743915746943,0.06188,83537.0,83536.0,0.52728622]
[1743915747850,0.06188,83537.0,83536.0,0.16648622]
[1743915748050,0.06188,83537.0,83536.0,0.52728622]
[1743915748952,0.06188,83537.0,83536.0,0.16648622]
[1743915749259,0.06188,83537.0,83536.0,0.52728622]
[1743915749955,0.06188,83537.0,83536.0,0.16648622]
[1743915750251,0.06188,83537.0,83536.0,0.52728622]
[1743915752351,0.06188,83537.0,83536.0,0.16648622]
[1743915752554,0.06188,83537.0,83536.0,0.52728622]
[1743915752852,0.06188,83537.0,83536.0,0.16648622]
[1743915753053,0.06188,83537.0,83536.0,0.52728622]
[1743915755147,0.03058,83537.0,83536.0,0.52728622]
[1743915756955,0.03058,83537.0,83536.0,0.16648622]
[1743915757456,0.03058,83537.0,83536.0,0.52728622]
[1743915758956,0.03058,83537.0,83536.0,0.16648622]
[1743915759157,0.03058,83537.0,83536.0,0.52728622]
[1743915760763,0.03058,83537.0,83536.0,0.16648622]
[1743915760963,0.03058,83537.0,83536.0,0.52728622]
[1743915763665,0.03058,83537.0,83536.0,0.49428622]
[1743915765770,0.03058,83537.0,83536.0,0.49425543]
[1743915766270,0.03058,83537.0,83536.0,0.49424874]
[1743915767571,0.03058,83537.0,83536.0,0.46204874]
[1743915767973,0.03058,83537.0,83536.0,0.49254874]
[1743915769474,0.03058,83537.0,83536.0,0.49254271]
[1743915771275,0.03058,83537.0,83536.0,0.475888]
[1743915771467,0.03058,83537.0,83536.0,0.49254463]
[1743915773372,0.03058,83537.0,83536.0,0.49255472]
[1743915775475,0.03058,83537.0,83536.0,0.13175472]
[1743915775674,0.03134,83537.0,83536.0,0.49255472]
[1743915776471,0.03134,83537.0,83536.0,0.52505472]
[1743915776976,0.03058,83537.0,83536.0,0.52505472]
[1743915778684,0.03058,83537.0,83536.0,0.52504141]
[1743915779582,0.03058,83537.0,83536.0,0.16424141]
[1743915779785,0.03122,83537.0,83536.0,0.52504141]
[1743915779980,8e-05,83537.0,83536.0,0.55744141]
[1743915780580,8e-05,83537.0,83536.0,0.55745862]
[1743915780881,8e-05,83537.0,83536.0,0.19665862]
[1743915781081,8e-05,83537.0,83536.0,0.55745862]
[1743915781386,8e-05,83537.0,83536.0,0.56045862]
[1743915781579,8e-05,83537.0,83536.0,0.56345862]
[1743915782084,8e-05,83537.0,83536.0,0.82045862]
[1743915782288,8e-05,83537.0,83536.0,0.82445862]
[1743915782583,0.05032,83540.0,83539.0,0.083825]
[1743915782787,0.05032,83540.0,83539.0,0.10049562]
[1743915783487,0.05032,83540.0,83539.0,0.16269562]
[1743915783675,0.05032,83540.0,83539.0,0.16271982]
[1743915784279,0.05032,83540.0,83539.0,0.16471982]
[1743915784480,8e-05,83540.0,83539.0,0.16471982]
[1743915785386,8e-05,83540.0,83539.0,0.16851982]
[1743915787390,8e-05,83540.0,83539.0,0.16857773]
[1743915789188,8e-05,83540.0,83539.0,0.16857136]
[1743915789388,8e-05,83540.0,83539.0,0.39857136]
[1743915790087,8e-05,83540.0,83539.0,0.16857136]
[1743915790884,8e-05,83540.0,83539.0,0.16857035]
[1743915793991,8e-05,83540.0,83539.0,0.39857035]
[1743915794191,8e-05,83540.0,83539.0,0.16857035]
[1743915794388,8e-05,83540.0,83539.0,0.43857035]
[1743915794778,8e-05,83540.0,83539.0,0.16857035]
[1743915795692,8e-05,83540.0,83539.0,0.68424936]
[1743915795891,8e-05,83540.0,83539.0,0.45424936]
[1743915796485,8e-05,83540.0,83539.0,0.71424936]
[1743915796686,8e-05,83540.0,83539.0,0.45424936]
[1743915797185,8e-05,83540.0,83539.0,0.45445671]
[1743915799091,8e-05,83540.0,83539.0,0.72445671]
[1743915799288,8e-05,83540.0,83539.0,0.45445671]
[1743915800291,8e-05,83540.0,83539.0,0.69445671]
[1743915800494,0.21024,83550.0,83549.0,0.083815]
[1743915800683,0.211,83550.0,83549.0,0.4615677]
[1743915800996,0.211,83550.0,83549.0,0.4623277]
[1743915801192,0.211,83550.0,83549.0,0.47125474]
[1743915801395,0.211,83550.0,83549.0,0.53455474]
[1743915801700,0.2438,83550.0,83549.0,0.53455474]
[1743915801890,0.2438,83550.0,83549.0,0.53503397]
[1743915802087,0.19356,83550.0,83549.0,0.53503397]
[1743915816206,0.22676,83550.0,83549.0,0.53503397]
[1743915816408,0.22676,83550.0,83549.0,0.53505545]
[1743915823207,0.22676,83550.0,83549.0,0.17425545]
[1743915823407,0.22676,83550.0,83549.0,0.53505545]
[1743915823802,0.22676,83550.0,83549.0,0.53473717]
[1743915824307,0.22676,83550.0,83549.0,0.17393717]
[1743915824606,0.22676,83550.0,83549.0,0.53473717]
[1743915825504,0.22676,83550.0,83549.0,0.50383717]
[1743915825900,0.310574,83550.0,83549.0,0.50383717]
[1743915826204,0.310574,83550.0,83549.0,0.47143717]
[1743915826408,0.41825522,83550.0,83549.0,0.47143717]
[1743915826909,0.41825522,83550.0,83549.0,0.02682217]
[1743915827315,0.41825522,83550.0,83549.0,0.11063717]
[1743915829201,0.41825522,83550.0,83549.0,0.02682217]
[1743915829407,0.41825522,83550.0,83549.0,0.02657628]
[1743915829915,0.083822,83542.0,83524.0,0.3608]
[1743915830215,0.495582,83542.0,83541.0,0.00085953]
[1743915830403,0.495582,83542.0,83541.0,0.00077953]
[1743915830811,0.560782,83542.0,83541.0,0.00077953]
[1743915832211,0.560782,83542.0,83541.0,0.00277953]
[1743915833007,0.578742,83542.0,83541.0,0.00477953]
[1743915833208,0.560782,83542.0,83541.0,0.00477953]
[1743915833509,0.578742,83542.0,83541.0,0.00477953]
[1743915834015,0.578742,83542.0,83541.0,0.01397579]
[1743915834416,0.578742,83542.0,83541.0,0.01337579]
[1743915838221,0.72209967,83542.0,83541.0,0.01337579]
[1743915841821,0.72209967,83542.0,83541.0,0.03023289]
[1743915842822,0.578742,83542.0,83541.0,0.03023289]
[1743915844029,0.578742,83542.0,83541.0,0.02823289]
[1743915844220,0.578742,83542.0,83541.0,0.03023289]
[1743915844825,0.578742,83542.0,83541.0,0.02923289]